fUSD/lending_fUSD_20240527
["ID","MTS","AMOUNT","RATE_DAILY","PERIOD"]
[328053994,1716822645453,-500.0,0.00032876,7]
[328053995,1716822645462,-598.18,0.00032876,7]
[328053996,1716822645471,-500.0,0.00032876,7]
[328053997,1716822645480,-500.0,0.00032876,7]
[328053998,1716822645490,-500.0,0.00032876,7]
[328053999,1716822645500,-500.0,0.00032876,7]
[328054000,1716822645512,-500.0,0.00032876,7]
[328054001,1716822645523,-500.0,0.00032876,7]
[328054002,1716822645533,-232.5,0.00032876,7]
[328054003,1716822645543,-500.0,0.00032876,7]
[328054004,1716822645553,-500.0,0.00032876,7]
[328054005,1716822645563,-500.0,0.00032876,7]
[328054006,1716822645574,-500.0,0.00032876,7]
[328054007,1716822645585,-504.6,0.00032876,7]
[328054008,1716822645595,-500.0,0.00032876,7]
[328054009,1716822645606,-500.0,0.00032876,7]
[328054010,1716822645617,-500.0,0.00032876,7]
[328054011,1716822645627,-500.0,0.00032876,7]
[328054012,1716822645636,-500.0,0.00032876,7]
[328054013,1716822645646,-500.0,0.00032876,7]
[328054014,1716822645656,-500.0,0.00032876,7]
[328054015,1716822645666,-500.0,0.00032876,7]
[328054016,1716822645676,-500.0,0.00032876,7]
[328054017,1716822645686,-500.0,0.00032876,7]
[328054018,1716822645697,-500.0,0.00032876,7]
[328054019,1716822645707,-462.14,0.00032876,7]
[328054020,1716822645717,-500.0,0.00032876,7]
[328054021,1716822645728,-418.1,0.00032876,7]
[328054022,1716822645738,-500.0,0.00032876,7]
[328054023,1716822645748,-359.25,0.00032876,7]
[328054024,1716822645758,-500.0,0.00032876,7]
[328054025,1716822645768,-500.0,0.00032876,7]
[328054026,1716822645778,-500.0,0.00032876,7]
[328054027,1716822645788,-500.0,0.00032876,7]
[328054028,1716822645797,-500.0,0.00032876,7]
[328054029,1716822645807,-500.0,0.00032876,7]
[328054030,1716822645816,-500.0,0.00032876,7]
[328054031,1716822645825,-500.0,0.00032876,7]
[328054032,1716822645835,-500.0,0.00032876,7]
[328054033,1716822645844,-500.0,0.00032876,7]
[328054034,1716822645853,-500.0,0.00032876,7]
[328054035,1716822645862,-500.0,0.00032876,7]
[328054036,1716822645872,-546.21,0.00032876,7]
[328054037,1716822645881,-500.0,0.00032876,7]
[328054038,1716822645892,-648.69,0.00032876,7]
[328054039,1716822645901,-500.0,0.00032876,7]
[328054040,1716822645911,-289.07,0.00032876,7]
[328054041,1716822645921,-614.2473242,0.00032876,7]
[328054042,1716822645931,-500.0,0.00032876,7]
[328054043,1716822645943,-500.0,0.00032876,7]
[328054044,1716822645954,-500.0,0.00032876,7]
[328054045,1716822645963,-517.39808885,0.00032876,7]
[328054046,1716822645972,-178.84,0.00032876,7]
[328054047,1716822645983,-500.0,0.00032876,2]
[328054048,1716822645993,-500.0,0.00032876,7]
[328054049,1716822646002,-500.0,0.00032876,2]
[328054050,1716822646012,-500.0,0.00032876,2]
[328054051,1716822646023,-500.0,0.00032876,2]
[328054052,1716822646033,-500.0,0.00032876,2]
[328054053,1716822646042,-500.0,0.00032876,7]
[328054054,1716822646052,-500.0,0.00032876,7]
[328054055,1716822646062,-500.0,0.00032876,7]
[328054056,1716822646071,-500.0,0.00032876,7]
[328054057,1716822646080,-500.0,0.00032876,7]
[328054058,1716822646090,-500.0,0.00032876,7]
[328054059,1716822646099,-500.0,0.00032876,7]
[328054060,1716822646109,-500.0,0.00032876,7]
[328054061,1716822646118,-500.0,0.00032876,7]
[328054062,1716822646127,-218.72,0.00032876,7]
[328054063,1716822646137,-322.96,0.00032877,2]
[328054064,1716822646146,-24101.35,0.00032877,2]
[328054065,1716822646156,-28355.7,0.00032877,2]
[328054066,1716822646165,-156.50050792,0.00032883,7]
[328054067,1716822646174,-2000.0,0.000329,2]
[328054068,1716822646183,-488.48750208,0.000329,2]
[328054070,1716822646193,-842.74132985,0.000329,2]
[328054071,1716822646203,-338.0,0.000329,2]
[328054073,1716822646212,-178.0,0.000329,2]
[328054074,1716822646221,-2560.08,0.00032904,2]
[328054075,1716822646230,-300.0,0.0003293,2]
[328054076,1716822646239,-1658.97,0.00032933,2]
[328054077,1716822646248,-500.0,0.00032944,2]
[328054078,1716822646257,-165.19432038,0.00032959,2]
[328054079,1716822646267,-1500.0,0.00032962,2]
[328054080,1716822646276,-4124.96,0.00032967,2]
[328054081,1716822646287,-150.0,0.00032968,2]
[328054082,1716822646296,-218.0,0.0003299,2]
[328054083,1716822646306,-208.0,0.0003299,2]
[328054084,1716822646316,-211.0,0.0003299,2]
[328054085,1716822646325,-210.0,0.0003299,2]
[328054086,1716822646335,-500.0,0.00032993,2]
[328054087,1716822646345,-500.0,0.00032999,2]
[328054088,1716822646354,-500.0,0.00032999,7]
[328054089,1716822646363,-500.0,0.00032999,2]
[328054090,1716822646373,-15094.10713771,0.00033,2]
[328054091,1716822646382,-6000.83665245,0.00033,2]
[328054092,1716822646392,-976.88356906,0.00033,2]
[328054093,1716822646401,-302.5470062,0.00033,14]
[328054094,1716822646411,-615.71659538,0.00033,30]
[328054095,1716822646421,-500.0,0.00033,2]
[328054096,1716822646431,-500.0,0.00033,2]
[328054097,1716822646440,-516.804213,0.00033,2]
[328054098,1716822646451,-216.04685861,0.00033003,7]
[328054099,1716822646460,-165.19432037,0.0003302,2]
[328054100,1716822646469,-7451.45377387,0.00033022,5]
[328054102,1716822646478,-157.34796658,0.00033027,2]
[328054104,1716822646487,-150.0,0.00033027,2]
[328054106,1716822646497,-7451.45377384,0.00033038,5]
[328054108,1716822646507,-1000.0,0.00033039,2]
[328054109,1716822646517,-155.74834842,0.00033054,7]
[328054110,1716822646526,-7451.45377384,0.00033055,5]
[328054111,1716822646536,-155.47019334,0.00033057,4]
[328054112,1716822646545,-293.37808014,0.00033057,4]
[328054113,1716822646555,-500.0,0.00033057,7]
[328054114,1716822646564,-500.0,0.00033057,7]
[328054115,1716822646573,-500.0,0.00033057,7]
[328054116,1716822646582,-500.0,0.00033057,7]
[328054117,1716822646592,-500.0,0.00033057,7]
[328054118,1716822646601,-190.75,0.00033057,7]
[328054119,1716822646610,-1802.94,0.00033058,2]
[328054120,1716822646620,-1802.94,0.00033058,2]
[328054121,1716822646631,-1802.94,0.00033058,2]
[328054122,1716822646641,-1802.94,0.00033058,2]
[328054123,1716822646652,-1802.94,0.00033058,2]
[328054124,1716822646661,-1802.94,0.00033058,2]
[328054125,1716822646670,-1802.94,0.00033058,2]
[328054126,1716822646680,-1802.94,0.00033058,2]
[328054127,1716822646689,-1802.94,0.00033058,2]
[328054128,1716822646700,-1802.94,0.00033058,2]
[328054129,1716822646709,-1802.94,0.00033058,2]
[328054130,1716822646718,-1802.94,0.00033058,2]
[328054131,1716822646727,-1802.94,0.00033058,2]
[328054132,1716822646736,-1802.94,0.00033058,2]
[328054133,1716822646746,-1802.94,0.00033058,2]
[328054134,1716822646755,-1802.94,0.00033058,2]
[328054135,1716822646765,-1802.94,0.00033058,2]
[328054136,1716822646779,-1802.94,0.00033058,2]
[328054137,1716822646789,-1802.94,0.00033058,2]
[328054138,1716822646798,-1802.94,0.00033058,2]
[328054139,1716822646807,-1802.94,0.00033058,2]
[328054140,1716822646816,-1802.94,0.00033058,2]
[328054141,1716822646825,-1802.94,0.00033058,2]
[328054142,1716822646835,-1802.98677044,0.00033058,2]
[328054143,1716822646846,-500.0,0.00033058,7]
[328054144,1716822646855,-1575.91,0.00033058,7]
[328054145,1716822646865,-553.71,0.00033058,7]
[328054146,1716822646874,-500.0,0.00033058,7]
[328054147,1716822646883,-500.0,0.00033058,7]
[328054148,1716822646892,-7451.45377384,0.00033071,5]
[328054149,1716822646901,-165.19432037,0.0003308,2]
[328054150,1716822646911,-7451.45377384,0.00033087,5]
[328054151,1716822646920,-1500.0,0.00033089,2]
[328054152,1716822646929,-300.43304122,0.0003309,2]
[328054153,1716822646939,-155.0,0.00033095,2]
[328054154,1716822646952,-166.66666666,0.00033097,7]
[328054155,1716822646962,-9051.81202756,0.00033097,2]
[328054156,1716822646971,-155.44744836,0.00033098,4]
[328054157,1716822646981,-155.0,0.00033098,4]
[328054158,1716822646991,-155.92994263,0.00033099,4]
[328054159,1716822647000,-190.56664087,0.00033099,4]
[328054160,1716822647009,-5900.0,0.00033099,10]
[328054161,1716822647020,-200.0,0.00033099,2]
[328054162,1716822647030,-806.76054684,0.00033099,4]
[328054163,1716822647039,-155.44358004,0.00033099,4]
[328054164,1716822647048,-1227.95940182,0.00033099,4]
[328054165,1716822647057,-500.0,0.00033099,2]
[328054166,1716822647066,-500.0,0.00033099,7]
[328054167,1716822647075,-616.42691811,0.00033099,2]
[328054168,1716822647086,-500.0,0.00033099,7]
[328054169,1716822647096,-500.0,0.00033099,7]
[328054170,1716822647106,-500.0,0.00033099,7]
[328054171,1716822647115,-1575.91,0.00033099,7]
[328054172,1716822647124,-1575.91,0.00033099,7]
[328054173,1716822647133,-500.0,0.00033099,7]
[328054174,1716822647142,-500.0,0.00033099,7]
[328054175,1716822647152,-500.0,0.00033099,7]
[328054176,1716822647161,-465.54,0.00033099,7]
[328054177,1716822647171,-581.63,0.00033099,7]
[328054178,1716822647180,-581.63,0.00033099,7]
[328054179,1716822647190,-581.63,0.00033099,7]
[328054180,1716822647202,-511.33,0.00033099,7]
[328054181,1716822647211,-581.63,0.00033099,7]
[328054182,1716822647221,-581.63,0.00033099,7]
[328054183,1716822647230,-500.0,0.00033099,7]
[328054184,1716822647239,-500.0,0.00033099,7]
[328054185,1716822647249,-500.0,0.00033099,7]
[328054186,1716822647258,-500.0,0.00033099,7]
[328054187,1716822647268,-500.0,0.00033099,7]
[328054188,1716822647277,-500.0,0.00033099,7]
[328054189,1716822647286,-150.0,0.00033099,7]
[328054190,1716822647296,-500.0,0.00033099,2]
[328054191,1716822647305,-500.0,0.00033099,2]
[328054192,1716822647314,-500.0,0.00033099,2]
[328054193,1716822647323,-500.0,0.00033099,2]
[328054194,1716822647332,-433.16,0.00033099,7]
[328054195,1716822647342,-341012.93713633,0.000331,10]
[328054196,1716822647351,-500.0,0.000331,7]
[328054197,1716822647360,-647.35043161,0.000331,7]
[328054198,1716822647369,-838.16,0.000331,2]
[328054199,1716822647378,-838.16,0.000331,2]
[328054200,1716822647387,-838.16,0.000331,2]
[328054201,1716822647396,-544.35,0.000331,2]
[328054202,1716822647405,-544.35,0.000331,2]
[328054203,1716822647416,-544.35,0.000331,2]
[328054204,1716822647427,-661994.32482455,0.000331,7]
[328054205,1716822647439,-7451.45377384,0.00033103,5]
[328054206,1716822647451,-200.0,0.00033115,120]
[328054207,1716822647464,-7451.45377384,0.0003312,5]
[328054208,1716822647474,-157.553806,0.00033122,2]
[328054209,1716822647483,-288.033506,0.00033122,2]
[328054210,1716822647492,-168.209898,0.00033122,2]
[328054211,1716822647502,-398.27298,0.00033122,2]
[328054212,1716822647514,-252.314849,0.00033122,2]
[328054213,1716822647527,-680.736068,0.00033122,2]
[328054214,1716822647537,-155.37516686,0.00033127,4]
[328054215,1716822647547,-250.48972718,0.00033127,4]
[328054216,1716822647556,-155.82552627,0.00033127,4]
[328054217,1716822647565,-156.04415715,0.00033128,4]
[328054218,1716822647575,-155.28072083,0.00033128,4]
[328054219,1716822647584,-156.34478704,0.00033128,4]
[328054220,1716822647594,-155.2704629,0.00033128,4]
[328054221,1716822647603,-500.0,0.00033134,10]
[328054222,1716822647613,-625.1819769,0.00033135,2]
[328054223,1716822647622,-500.0,0.00033135,7]
[328054224,1716822647631,-7451.45377384,0.00033136,5]
[328054225,1716822647641,-165.19432037,0.00033141,2]
[328054226,1716822647650,-153.74444084,0.00033141,2]
[328054227,1716822647660,-150.0,0.00033144,2]
[328054228,1716822647669,-349.684016,0.00033151,14]
[328054229,1716822647678,-7451.45377384,0.00033152,5]
[328054230,1716822647687,-500.0,0.00033168,2]
[328054231,1716822647699,-7451.45377384,0.00033168,5]
[328054232,1716822647709,-500.0,0.0003318,7]
[328054233,1716822647718,-500.0,0.0003318,7]
[328054234,1716822647728,-500.0,0.00033181,7]
[328054235,1716822647737,-500.0,0.00033181,7]
[328054236,1716822647747,-500.0,0.00033181,7]
[328054237,1716822647756,-1575.91,0.00033181,7]
[328054238,1716822647766,-1575.91,0.00033181,7]
[328054239,1716822647776,-1575.91,0.00033181,7]
[328054240,1716822647785,-500.0,0.00033181,7]
[328054243,1716822647794,-500.0,0.00033181,7]
[328054246,1716822647804,-500.0,0.00033181,7]
[328054248,1716822647814,-500.0,0.00033181,7]
[328054250,1716822647823,-500.0,0.00033181,7]
[328054252,1716822647832,-597.04,0.00033181,7]
[328054254,1716822647842,-1500.0,0.00033182,2]
[328054256,1716822647851,-7451.45377384,0.00033185,5]
[328054257,1716822647860,-1594.97140338,0.00033188,2]
[328054258,1716822647870,-3173.74022683,0.00033188,2]
[328054259,1716822647879,-300.0,0.00033189,2]
[328054260,1716822647889,-635.97541452,0.00033192,4]
[328054261,1716822647899,-161.619254,0.00033193,2]
[328054262,1716822647909,-843.81419226,0.00033198,46]
[328054263,1716822647918,-150.0,0.00033198,2]
[328054264,1716822647928,-411.65,0.00033198,7]
[328054265,1716822647938,-500.0,0.00033198,7]
[328054266,1716822647952,-500.0,0.00033198,7]
[328054267,1716822647961,-500.0,0.00033198,7]
[328054268,1716822647970,-500.0,0.00033198,7]
[328054269,1716822647981,-500.0,0.00033198,7]
[328054272,1716822648120,-500.0,0.00033198,7]
[328054273,1716822648130,-500.0,0.00033198,7]
[328054274,1716822648140,-500.0,0.00033198,7]
[328054276,1716822648150,-500.0,0.00033198,7]
[328054278,1716822648159,-7451.45377384,0.00033201,5]
[328054280,1716822648169,-165.19432037,0.00033201,2]
[328054282,1716822648179,-5800.0,0.00033207,2]
[328054284,1716822648188,-500.0,0.00033214,7]
[328054286,1716822648199,-5800.0,0.00033215,2]
[328054288,1716822648207,-5800.0,0.00033224,2]
[328054290,1716822648217,-150.0,0.00033228,2]
[328054292,1716822648226,-5800.0,0.00033232,2]
[328054293,1716822648235,-150.0,0.00033239,2]
[328054294,1716822648244,-838.16,0.0003324,2]
[328054295,1716822648254,-544.35,0.0003324,2]
[328054296,1716822648264,-5800.0,0.00033241,2]
[328054297,1716822648274,-1594.97140336,0.00033244,2]
[328054298,1716822648284,-3173.74022683,0.00033244,2]
[328054299,1716822648293,-5800.0,0.00033249,2]
[328054300,1716822648303,-5800.0,0.00033258,2]
[328054301,1716822648312,-150.0,0.00033264,2]
[328054302,1716822648323,-500.0,0.00033265,7]
[328054303,1716822648334,-500.0,0.00033265,7]
[328054304,1716822648343,-5800.0,0.00033266,2]
[328054305,1716822648353,-5800.0,0.00033275,2]
[328054306,1716822648363,-300.43304122,0.00033281,2]
[328054307,1716822648373,-5800.0,0.00033283,2]
[328054308,1716822648383,-9051.81202756,0.00033285,2]
[328054309,1716822648392,-500.0,0.00033287,7]
[328054310,1716822648402,-500.0,0.00033287,7]
[328054311,1716822648412,-1575.91,0.00033287,7]
[328054312,1716822648421,-530.12000001,0.00033287,7]
[328054313,1716822648431,-581.63,0.00033287,7]
[328054314,1716822648440,-500.0,0.00033287,7]
[328054315,1716822648451,-500.0,0.00033287,7]
[328054316,1716822648460,-500.0,0.00033287,2]
[328054317,1716822648470,-199909.0,0.00033288,4]
[328054318,1716822648479,-4696.0,0.00033288,4]
[328054319,1716822648488,-150.0,0.00033289,2]
[328054320,1716822648498,-58000.0,0.00033291,3]
[328054321,1716822648507,-5800.0,0.00033292,2]
[328054322,1716822648517,-3103.13602132,0.00033298,10]
[328054323,1716822648527,-1162.86486204,0.00033298,2]
[328054324,1716822648538,-500.0,0.00033299,7]
[328054325,1716822648547,-1575.91,0.00033299,7]
[328054326,1716822648557,-581.63,0.00033299,7]
[328054327,1716822648567,-500.0,0.00033299,7]
[328054328,1716822648576,-1594.97140336,0.00033299,2]
[328054329,1716822648586,-153.74444083,0.00033299,2]
[328054330,1716822648596,-3173.74022683,0.00033299,2]
[328054331,1716822648606,-316.33906373,0.00033299,2]
[328054332,1716822648615,-500.0,0.00033299,2]
[328054333,1716822648624,-58000.0,0.000333,3]
[328054335,1716822648635,-5800.0,0.000333,2]
[328054337,1716822648645,-988.73,0.000333,2]
[328054339,1716822648654,-838.16,0.000333,2]
[328054341,1716822648664,-838.16,0.000333,2]
[328054343,1716822648674,-838.16,0.000333,2]
[328054345,1716822648683,-838.16,0.000333,2]
[328054347,1716822648693,-838.16,0.000333,2]
[328054349,1716822648704,-838.16,0.000333,2]
[328054351,1716822648714,-838.16,0.000333,2]
[328054353,1716822648723,-838.16,0.000333,2]
[328054355,1716822648732,-838.16,0.000333,2]
[328054357,1716822648742,-838.16,0.000333,2]
[328054359,1716822648752,-838.16,0.000333,2]
[328054361,1716822648761,-838.16,0.000333,2]
[328054363,1716822648773,-838.16,0.000333,2]
[328054365,1716822648783,-838.1761048,0.000333,2]
[328054367,1716822648793,-544.35,0.000333,2]
[328054369,1716822648803,-544.35,0.000333,2]
[328054371,1716822648813,-544.35,0.000333,2]
[328054373,1716822648824,-544.35,0.000333,2]
[328054375,1716822648834,-544.35,0.000333,2]
[328054377,1716822648843,-544.35,0.000333,2]
[328054379,1716822648853,-544.35,0.000333,2]
[328054381,1716822648863,-544.35,0.000333,2]
[328054383,1716822648872,-544.35,0.000333,2]
[328054385,1716822648882,-544.35,0.000333,2]
[328054387,1716822648898,-544.35,0.000333,2]
[328054389,1716822648907,-544.35,0.000333,2]
[328054391,1716822648917,-544.35,0.000333,2]
[328054393,1716822648928,-544.40410958,0.000333,2]
[328054395,1716822648939,-156.89400836,0.000333,7]
[328054397,1716822648953,-392.08583618,0.00033301,2]
[328054399,1716822648963,-235.25150171,0.00033301,2]
[328054401,1716822648972,-151.0,0.00033301,7]
[328054403,1716822648983,-151.0,0.00033301,7]
[328054405,1716822648992,-155.003951,0.00033301,7]
[328054407,1716822649002,-151.0,0.00033301,7]
[328054409,1716822649011,-153.43578,0.00033301,7]
[328054411,1716822649020,-151.0,0.00033301,7]
[328054413,1716822649033,-151.621177,0.00033301,7]
[328054415,1716822649043,-152.448144,0.00033301,7]
[328054417,1716822649053,-150.0,0.0003332,2]
[328054419,1716822649062,-500.0,0.00033344,2]
[328054421,1716822649072,-151.0,0.00033382,7]
[328054423,1716822649082,-217.697397,0.00033382,7]
[328054425,1716822649091,-151.0,0.00033382,7]
[328054427,1716822649100,-151.0,0.00033382,7]
[328054429,1716822649109,-151.0,0.00033382,7]
[328054431,1716822649119,-151.0,0.00033382,7]
[328054433,1716822649128,-151.0,0.00033382,7]
[328054435,1716822649137,-151.0,0.00033382,7]
[328054437,1716822649146,-153.646361,0.00033382,7]
[328054439,1716822649156,-162.113706,0.00033382,7]
[328054441,1716822649165,-158.090659,0.00033382,7]
[328054443,1716822649175,-151.0,0.00033382,7]
[328054445,1716822649184,-151.0,0.00033382,7]
[328054447,1716822649195,-151.0,0.00033382,7]
[328054449,1716822649204,-151.0,0.00033382,7]
[328054451,1716822649213,-158.54366,0.00033382,7]
[328054453,1716822649222,-151.0,0.00033382,7]
[328054455,1716822649231,-151.0,0.00033382,7]
[328054457,1716822649240,-151.0,0.00033382,7]
[328054459,1716822649250,-156.054311,0.00033382,7]
[328054461,1716822649260,-151.0,0.00033382,7]
[328054463,1716822649270,-151.0,0.00033382,7]
[328054465,1716822649279,-151.0,0.00033382,7]
[328054467,1716822649289,-151.0,0.00033382,7]
[328054469,1716822649299,-152.829998,0.00033382,7]
[328054471,1716822649308,-154.266481,0.00033382,7]
[328054473,1716822649317,-151.653393,0.00033382,7]
[328054475,1716822649330,-154.719942,0.00033382,7]
[328054477,1716822649340,-151.0,0.00033382,7]
[328054479,1716822649349,-157.066332,0.00033382,7]
[328054481,1716822649359,-500.0,0.00033382,7]
[328054483,1716822649369,-500.0,0.00033382,7]
[328054485,1716822649378,-500.0,0.00033382,7]
[328054487,1716822649388,-500.0,0.00033382,7]
[328054489,1716822649398,-500.0,0.00033382,7]
[328054491,1716822649408,-500.0,0.00033382,7]
[328054493,1716822649418,-500.0,0.00033382,7]
[328054495,1716822649428,-500.0,0.00033382,7]
[328054497,1716822649437,-500.0,0.00033382,7]
[328054499,1716822649448,-630.63365982,0.00033382,7]
[328054500,1716822649457,-1575.91,0.00033382,7]
[328054501,1716822649467,-1575.91,0.00033382,7]
[328054502,1716822649475,-1575.91,0.00033382,7]
[328054503,1716822649485,-1575.91,0.00033382,7]
[328054504,1716822649494,-1575.91,0.00033382,7]
[328054505,1716822649504,-1575.91,0.00033382,7]
[328054506,1716822649514,-1575.91,0.00033382,7]
[328054507,1716822649524,-1575.91,0.00033382,7]
[328054508,1716822649535,-1575.91,0.00033382,7]
[328054509,1716822649544,-1575.91,0.00033382,7]
[328054511,1716822649554,-1575.91,0.00033382,7]
[328054513,1716822649563,-1575.97270182,0.00033382,7]
[328054515,1716822649573,-622.34,0.00033382,7]
[328054517,1716822649582,-557.03,0.00033382,7]
[328054519,1716822649592,-177.248031,0.00033391,2]
[328054521,1716822649601,-242.03906462,0.00033392,4]
[328054523,1716822649611,-155.21224688,0.00033392,4]
[328054525,1716822649620,-3084.59378093,0.00033392,4]
[328054527,1716822649630,-623.69279949,0.00033392,4]
[328054529,1716822649641,-157.77334761,0.00033392,4]
[328054531,1716822649650,-156.8924145,0.00033392,4]
[328054533,1716822649660,-7521.99858144,0.00033392,4]
[328054535,1716822649669,-246.92247327,0.00033392,4]
[328054537,1716822649679,-234.18677311,0.00033392,4]
[328054539,1716822649688,-205.01985973,0.00033392,4]
[328054541,1716822649700,-686.40083079,0.00033392,4]
[328054543,1716822649710,-155.73894776,0.00033392,4]
[328054545,1716822649719,-262.76725722,0.00033392,4]
[328054547,1716822649729,-155.16842038,0.00033392,4]
[328054549,1716822649739,-599.06685493,0.00033393,4]
[328054551,1716822649749,-264.52157603,0.00033393,4]
[328054553,1716822649759,-155.30089052,0.00033393,4]
[328054555,1716822649769,-2329.28437138,0.00033393,4]
[328054557,1716822649778,-155.0,0.00033393,4]
[328054559,1716822649787,-150.0,0.00033397,7]
[328054561,1716822649796,-150.0,0.00033397,7]
[328054563,1716822649807,-150.0,0.00033397,7]
[328054565,1716822649818,-150.0,0.00033397,7]
[328054567,1716822649827,-151.0,0.00033398,7]
[328054569,1716822649836,-151.0,0.00033398,7]
[328054571,1716822649846,-151.0,0.00033398,7]
[328054572,1716822649855,-153.312713,0.00033398,7]
[328054574,1716822649865,-158.767686,0.00033398,7]
[328054576,1716822649875,-160.317387,0.00033398,7]
[328054577,1716822649885,-151.0,0.00033398,7]
[328054578,1716822649895,-151.0,0.00033398,7]
[328054579,1716822649906,-151.0,0.00033398,7]
[328054580,1716822649915,-151.0,0.00033398,7]
[328054581,1716822649925,-151.0,0.00033398,7]
[328054582,1716822649934,-153.523656,0.00033398,7]
[328054583,1716822649948,-151.0,0.00033398,7]
[328054584,1716822649957,-155.208532,0.00033398,7]
[328054585,1716822649966,-151.0,0.00033398,7]
[328054586,1716822649976,-151.0,0.00033398,7]
[328054587,1716822649987,-151.0,0.00033398,7]
[328054588,1716822649996,-152.783005,0.00033398,7]
[328054589,1716822650006,-151.0,0.00033398,7]
[328054590,1716822650017,-151.0,0.00033398,7]
[328054591,1716822650026,-151.0,0.00033398,7]
[328054592,1716822650036,-164.076309,0.00033398,7]
[328054593,1716822650046,-157.383335,0.00033398,7]
[328054594,1716822650055,-151.0,0.00033398,7]
[328054595,1716822650065,-151.0,0.00033398,7]
[328054596,1716822650075,-151.0,0.00033398,7]
[328054597,1716822650085,-151.0,0.00033398,7]
[328054598,1716822650095,-151.0,0.00033398,7]
[328054599,1716822650104,-175.841604,0.00033398,7]
[328054601,1716822650114,-151.0,0.00033398,7]
[328054602,1716822650124,-158.133372,0.00033398,7]
[328054603,1716822650133,-151.0,0.00033398,7]
[328054604,1716822650142,-151.0,0.00033398,7]
[328054605,1716822650152,-151.0,0.00033398,7]
[328054606,1716822650161,-151.0,0.00033398,7]
[328054607,1716822650171,-216.413294,0.00033398,7]
[328054608,1716822650180,-216.413294,0.00033398,7]
[328054609,1716822650189,-151.0,0.00033398,7]
[328054610,1716822650201,-153.168031,0.00033398,7]
[328054611,1716822650211,-216.413294,0.00033398,7]
[328054612,1716822650220,-216.413294,0.00033398,7]
[328054613,1716822650230,-151.0,0.00033398,7]
[328054614,1716822650239,-160.862631,0.00033398,7]
[328054615,1716822650249,-151.0,0.00033398,7]
[328054616,1716822650258,-152.175771,0.00033398,7]
[328054617,1716822650268,-300.996953,0.00033398,7]
[328054618,1716822650278,-153.614221,0.00033398,7]
[328054619,1716822650288,-154.54264,0.00033398,7]
[328054620,1716822650298,-151.0,0.00033398,7]
[328054621,1716822650307,-151.0,0.00033398,7]
[328054622,1716822650316,-151.0,0.00033398,7]
[328054623,1716822650326,-243.155992,0.00033398,7]
[328054624,1716822650336,-194.22901,0.00033398,7]
[328054625,1716822650345,-225.624903,0.00033398,7]
[328054626,1716822650355,-169.758602,0.00033398,7]
[328054627,1716822650364,-151.0,0.00033398,7]
[328054628,1716822650374,-151.0,0.00033398,7]
[328054629,1716822650384,-151.0,0.00033398,7]
[328054630,1716822650393,-156.391586,0.00033398,7]
[328054631,1716822650403,-57644.54,0.00033398,2]
[328054632,1716822650412,-581.63,0.00033398,7]
[328054633,1716822650422,-581.63,0.00033398,7]
[328054634,1716822650431,-581.63,0.00033398,7]
[328054635,1716822650441,-581.63,0.00033398,7]
[328054636,1716822650452,-581.63,0.00033398,7]